fUST/lending_fUST_20250203
["ID","MTS","AMOUNT","RATE_DAILY","PERIOD"]
[351373089,1738547437634,-509.62650941,0.00016438,2]
[351373090,1738547437644,-507.84962472,0.00016438,2]
[351373092,1738547437655,-575.64198368,0.00016438,2]
[351373094,1738547437666,-502.54755231,0.00016438,2]
[351373096,1738547437677,-501.07569585,0.00016438,2]
[351373097,1738547437688,-500.0,0.00016438,2]
[351373098,1738547437699,-501.61090148,0.00016438,2]
[351373099,1738547437710,-502.05796194,0.00016438,2]
[351373100,1738547437721,-500.0,0.00016438,2]
[351373101,1738547437731,-503.17864881,0.00016438,2]
[351373102,1738547437742,-500.0,0.00016438,2]
[351373103,1738547437752,-500.0,0.00016438,2]
[351373104,1738547437763,-502.39049795,0.00016438,2]
[351373105,1738547437773,-500.0,0.00016438,2]
[351373106,1738547437783,-500.73202562,0.00016438,2]
[351373107,1738547437795,-504.7409244,0.00016438,2]
[351373108,1738547437805,-500.0,0.00016438,2]
[351373109,1738547437816,-500.0,0.00016438,2]
[351373111,1738547437826,-506.48546193,0.00016438,2]
[351373113,1738547437837,-500.0,0.00016438,2]
[351373115,1738547437847,-501.59611726,0.00016438,2]
[351373116,1738547437858,-480.18750737,0.00016438,2]
[351373118,1738547437869,-500.0,0.00016438,2]
[351373119,1738547437879,-500.0,0.00016438,2]
[351373120,1738547437890,-502.83707941,0.00016438,2]
[351373121,1738547437900,-593.00750573,0.00016438,2]
[351373122,1738547437911,-603.34957752,0.00016438,2]
[351373124,1738547437921,-500.0,0.00016438,2]
[351373125,1738547437931,-500.0,0.00016438,2]
[351373126,1738547437940,-500.0,0.00016438,2]
[351373127,1738547437950,-500.0,0.00016438,2]
[351373128,1738547437960,-501.94741621,0.00016438,2]
[351373129,1738547437971,-501.06841603,0.00016438,2]
[351373131,1738547437981,-500.0,0.00016438,2]
[351373132,1738547437991,-500.0,0.00016438,2]
[351373134,1738547438001,-504.77712125,0.00016438,2]
[351373136,1738547438011,-500.0,0.00016438,2]
[351373138,1738547438021,-502.76177187,0.00016438,2]
[351373139,1738547438032,-500.0,0.00016438,2]
[351373141,1738547438045,-500.0,0.00016438,2]
[351373143,1738547438057,-503.36448919,0.00016438,2]
[351373145,1738547438068,-153.33183055,0.00016438,2]
[351373147,1738547438079,-500.0,0.00016438,2]
[351373149,1738547438090,-500.0,0.00016438,2]
[351373150,1738547438101,-500.0,0.00016438,2]
[351373152,1738547438112,-500.0,0.00016438,2]
[351373154,1738547438122,-509.9756599,0.00016438,2]
[351373156,1738547438133,-500.0,0.00016438,2]
[351373158,1738547438142,-500.0,0.00016438,2]
[351373160,1738547438151,-500.0,0.00016438,2]
[351373162,1738547438161,-500.0,0.00016438,2]
[351373163,1738547438172,-502.86618827,0.00016438,2]
[351373164,1738547438182,-603.80169641,0.00016438,2]
[351373166,1738547438191,-500.0,0.00016438,2]
[351373167,1738547438202,-590.88898904,0.00016438,2]
[351373168,1738547438215,-503.11099905,0.00016438,2]
[351373169,1738547438225,-500.0,0.00016438,2]
[351373170,1738547438235,-500.0,0.00016438,2]
[351373171,1738547438245,-501.41908892,0.00016438,2]
[351373172,1738547438256,-500.0,0.00016438,2]
[351373174,1738547438266,-502.14375727,0.00016438,2]
[351373176,1738547438276,-500.0,0.00016438,2]
[351373178,1738547438285,-503.93559396,0.00016438,2]
[351373179,1738547438299,-501.89117017,0.00016438,2]
[351373181,1738547438309,-501.07585856,0.00016438,2]
[351373182,1738547438319,-500.0,0.00016438,2]
[351373183,1738547438330,-501.18653328,0.00016438,2]
[351373184,1738547438340,-503.57422033,0.00016438,2]
[351373185,1738547438350,-500.0,0.00016438,2]
[351373187,1738547438362,-500.0,0.00016438,2]
[351373188,1738547438372,-502.89247496,0.00016438,2]
[351373189,1738547438383,-500.61035389,0.00016438,2]
[351373190,1738547438395,-500.0,0.00016438,2]
[351373191,1738547438406,-504.01844,0.00016438,2]
[351373192,1738547438417,-500.0,0.00016438,2]
[351373193,1738547438427,-500.89866855,0.00016438,2]
[351373194,1738547438439,-500.0,0.00016438,2]
[351373195,1738547438450,-500.0,0.00016438,2]
[351373196,1738547438460,-500.0,0.00016438,2]
[351373197,1738547438472,-500.0,0.00016438,2]
[351373198,1738547438483,-500.0,0.00016438,2]
[351373199,1738547438493,-614.11580839,0.00016438,2]
[351373200,1738547438505,-500.0,0.00016438,2]
[351373201,1738547438516,-500.0,0.00016438,2]
[351373202,1738547438527,-500.0,0.00016438,2]
[351373203,1738547438537,-500.0,0.00016438,2]
[351373204,1738547438550,-500.0,0.00016438,2]
[351373205,1738547438560,-500.68713925,0.00016438,2]
[351373206,1738547438570,-500.0,0.00016438,2]
[351373207,1738547438579,-500.0,0.00016438,2]
[351373208,1738547438590,-505.04573258,0.00016438,2]
[351373209,1738547438600,-500.0,0.00016438,2]
[351373210,1738547438610,-506.09160592,0.00016438,2]
[351373211,1738547438619,-500.0,0.00016438,2]
[351373212,1738547438629,-500.0,0.00016438,2]
[351373213,1738547438639,-500.0,0.00016438,2]
[351373214,1738547438649,-500.0,0.00016438,2]
[351373215,1738547438659,-222.22827709,0.00016438,2]
[351373216,1738547438670,-260.25535284,0.00016438,2]
[351373217,1738547438681,-500.0,0.00016438,2]
[351373218,1738547438691,-502.17805856,0.00016438,2]
[351373219,1738547438700,-530.93361029,0.00016438,2]
[351373220,1738547438709,-501.41775373,0.00016438,2]
[351373221,1738547438717,-500.0,0.00016438,2]
[351373222,1738547438725,-500.0,0.00016438,2]
[351373223,1738547438733,-500.0,0.00016438,2]
[351373224,1738547438743,-500.0,0.00016438,2]
[351373225,1738547438751,-500.0,0.00016438,2]
[351373226,1738547438760,-502.9069627,0.00016438,2]
[351373227,1738547438769,-500.0,0.00016438,2]
[351373228,1738547438777,-500.0,0.00016438,2]
[351373229,1738547438785,-500.0,0.00016438,2]
[351373230,1738547438794,-504.7163577,0.00016438,2]
[351373231,1738547438804,-500.0,0.00016438,2]
[351373232,1738547438811,-500.0,0.00016438,2]
[351373233,1738547438821,-503.15452497,0.00016438,2]
[351373234,1738547438828,-500.0,0.00016438,2]
[351373235,1738547438835,-500.0,0.00016438,2]
[351373236,1738547438842,-581.91165568,0.00016438,2]
[351373237,1738547438851,-500.0,0.00016438,2]
[351373238,1738547438859,-500.0,0.00016438,2]
[351373239,1738547438870,-500.0,0.00016438,2]
[351373240,1738547438880,-500.0,0.00016438,2]
[351373241,1738547438891,-500.0,0.00016438,2]
[351373242,1738547438902,-502.63918994,0.00016438,2]
[351373243,1738547438913,-547.17675004,0.00016438,2]
[351373244,1738547438923,-500.0,0.00016438,2]
[351373245,1738547438934,-500.58889115,0.00016438,2]
[351373246,1738547438944,-500.0,0.00016438,2]
[351373247,1738547438954,-502.10875522,0.00016438,2]
[351373248,1738547438964,-500.0,0.00016438,2]
[351373249,1738547438975,-503.0743952,0.00016438,2]
[351373250,1738547438984,-503.85716888,0.00016438,2]
[351373251,1738547438995,-502.99433212,0.00016438,2]
[351373252,1738547439007,-500.0,0.00016438,2]
[351373253,1738547439017,-500.0,0.00016438,2]
[351373254,1738547439027,-500.0,0.00016438,2]
[351373255,1738547439038,-505.26318913,0.00016438,2]
[351373256,1738547439053,-500.0,0.00016438,2]
[351373257,1738547439064,-500.0,0.00016438,2]
[351373258,1738547439074,-500.0,0.00016438,2]
[351373259,1738547439084,-500.0,0.00016438,2]
[351373260,1738547439095,-500.0,0.00016438,2]
[351373261,1738547439106,-506.97230395,0.00016438,2]
[351373262,1738547439117,-584.95635408,0.00016438,2]
[351373263,1738547439127,-501.09799273,0.00016438,2]
[351373264,1738547439138,-501.65488577,0.00016438,2]
[351373265,1738547439148,-506.83952295,0.00016438,2]
[351373266,1738547439159,-501.32757657,0.00016438,2]
[351373267,1738547439169,-639.41457615,0.00016438,2]
[351373268,1738547439180,-500.0,0.00016438,2]
[351373269,1738547439190,-501.95195813,0.00016438,2]
[351373270,1738547439201,-501.11241431,0.00016438,2]
[351373271,1738547439215,-501.67428235,0.00016438,2]
[351373272,1738547439225,-500.0,0.00016438,2]
[351373273,1738547439235,-500.0,0.00016438,2]
[351373274,1738547439245,-500.0,0.00016438,2]
[351373275,1738547439256,-500.0,0.00016438,2]
[351373276,1738547439268,-500.0,0.00016438,2]
[351373277,1738547439279,-506.24443176,0.00016438,2]
[351373278,1738547439290,-501.77251155,0.00016438,2]
[351373279,1738547439305,-500.0,0.00016438,2]
[351373280,1738547439315,-507.73597965,0.00016438,2]
[351373281,1738547439326,-500.0,0.00016438,2]
[351373282,1738547439336,-500.0,0.00016438,2]
[351373283,1738547439347,-500.0,0.00016438,2]
[351373284,1738547439358,-500.0,0.00016438,2]
[351373286,1738547439369,-500.0,0.00016438,2]
[351373288,1738547439381,-500.0,0.00016438,2]
[351373291,1738547439392,-500.0,0.00016438,2]
[351373293,1738547439511,-420.24181368,0.00016438,2]
[351373295,1738547439521,-501.38695642,0.00016438,2]
[351373296,1738547439532,-500.0,0.00016438,2]
[351373297,1738547439543,-500.0,0.00016438,2]
[351373298,1738547439555,-518.25575173,0.00016438,2]
[351373299,1738547439565,-501.24611517,0.00016438,2]
[351373301,1738547439575,-500.0,0.00016438,2]
[351373303,1738547439585,-501.60026315,0.00016438,2]
[351373305,1738547439595,-17.03253459,0.00016438,2]
[351373312,1738547439836,-482.96746541,0.00016438,2]
[351373313,1738547439847,-510.77500736,0.00016438,2]
[351373314,1738547439858,-580.87,0.00016438,2]
[351373315,1738547439869,-503.27846716,0.00016438,2]
[351373316,1738547439881,-500.0,0.00016438,2]
[351373317,1738547439891,-500.0,0.00016438,2]
[351373318,1738547439901,-500.0,0.00016438,2]
[351373319,1738547439912,-500.0,0.00016438,2]
[351373320,1738547439923,-500.0,0.00016438,2]
[351373321,1738547439933,-500.0,0.00016438,2]
[351373322,1738547439943,-501.42713324,0.00016438,2]
[351373323,1738547439953,-500.0,0.00016438,2]
[351373324,1738547439964,-500.0,0.00016438,2]
[351373325,1738547439973,-500.0,0.00016438,2]
[351373326,1738547439983,-500.0,0.00016438,2]
[351373327,1738547439994,-500.0,0.00016438,2]
[351373328,1738547440004,-500.0,0.00016438,2]
[351373329,1738547440014,-503.8107647,0.00016438,2]
[351373330,1738547440024,-503.05254049,0.00016438,2]
[351373331,1738547440034,-500.0,0.00016438,2]
[351373332,1738547440043,-500.0,0.00016438,2]
[351373333,1738547440056,-500.0,0.00016438,2]
[351373334,1738547440066,-500.0,0.00016438,2]
[351373336,1738547440076,-327.49618034,0.00016438,2]
[351373337,1738547440086,-500.0,0.00016438,2]
[351373338,1738547440095,-500.0,0.00016438,2]
[351373339,1738547440105,-500.0,0.00016438,2]
[351373340,1738547440115,-500.0,0.00016438,2]
[351373341,1738547440125,-429.95054025,0.00016438,2]
[351373342,1738547440134,-500.0,0.00016438,2]
[351373343,1738547440144,-500.53071135,0.00016438,2]
[351373344,1738547440153,-500.46629131,0.00016438,2]
[351373345,1738547440162,-501.52517247,0.00016438,2]
[351373346,1738547440172,-500.77223445,0.00016438,2]
[351373347,1738547440182,-500.0,0.00016438,2]
[351373348,1738547440192,-500.0,0.00016438,2]
[351373349,1738547440201,-500.0,0.00016438,2]
[351373350,1738547440212,-500.0,0.00016438,2]
[351373351,1738547440223,-500.0,0.00016438,2]
[351373352,1738547440234,-501.41378798,0.00016438,2]
[351373353,1738547440244,-500.0,0.00016438,2]
[351373354,1738547440255,-500.0,0.00016438,2]
[351373355,1738547440267,-500.0,0.00016438,2]
[351373356,1738547440280,-501.91616439,0.00016438,2]
[351373357,1738547440290,-500.0,0.00016438,2]
[351373358,1738547440302,-500.0,0.00016438,2]
[351373359,1738547440312,-500.0,0.00016438,2]
[351373360,1738547440322,-500.0,0.00016438,2]
[351373361,1738547440331,-502.85747326,0.00016438,2]
[351373362,1738547440341,-500.0,0.00016438,2]
[351373363,1738547440351,-500.0,0.00016438,2]
[351373364,1738547440361,-500.0,0.00016438,2]
[351373365,1738547440371,-501.58002226,0.00016438,2]
[351373366,1738547440382,-529.02969856,0.00016438,2]
[351373367,1738547440392,-500.0,0.00016438,2]
[351373368,1738547440401,-138.15111493,0.00016438,2]
[351373369,1738547440415,-363.29200551,0.00016438,2]
[351373370,1738547440425,-500.0,0.00016438,2]
[351373371,1738547440435,-430.49480936,0.00016438,2]
[351373372,1738547440446,-500.0,0.00016438,2]
[351373373,1738547440455,-500.0,0.00016438,2]
[351373374,1738547440464,-500.0,0.00016438,2]
[351373375,1738547440475,-500.71411066,0.00016438,2]
[351373376,1738547440485,-500.0,0.00016438,2]
[351373377,1738547440496,-500.85488077,0.00016438,2]
[351373378,1738547440506,-500.0,0.00016438,2]
[351373379,1738547440517,-509.83,0.00016438,2]
[351373380,1738547440527,-500.0,0.00016438,2]
[351373381,1738547440538,-500.0,0.00016438,2]
[351373382,1738547440550,-500.0,0.00016438,2]
[351373383,1738547440561,-500.0,0.00016438,2]
[351373384,1738547440571,-504.11969733,0.00016438,2]
[351373385,1738547440582,-1402.8,0.00016438,2]
[351373386,1738547440592,-287.89449637,0.00016438,2]
[351373387,1738547440611,-212.10550363,0.00016438,2]
[351373388,1738547440621,-501.12265967,0.00016438,2]
[351373389,1738547440631,-53.66246438,0.00016438,2]
[351373390,1738547440644,-446.33753562,0.00016438,2]
[351373391,1738547440655,-500.0,0.00016438,2]
[351373392,1738547440665,-500.0,0.00016438,2]
[351373393,1738547440675,-500.0,0.00016438,2]
[351373394,1738547440685,-500.63732547,0.00016438,2]
[351373395,1738547440694,-500.76561699,0.00016438,2]
[351373396,1738547440705,-500.0,0.00016438,2]
[351373397,1738547440715,-500.0,0.00016438,2]
[351373398,1738547440726,-504.76712775,0.00016438,2]
[351373399,1738547440735,-500.0,0.00016438,2]
[351373400,1738547440745,-500.0,0.00016438,2]
[351373401,1738547440755,-396.06149924,0.00016438,2]
[351373402,1738547440767,-179.7735483,0.00016438,2]
[351373403,1738547440776,-500.0,0.00016438,2]
[351373404,1738547440786,-504.63077401,0.00016438,2]
[351373405,1738547440798,-897.88,0.00016438,2]
[351373406,1738547440808,-500.0,0.00016438,2]
[351373407,1738547440818,-507.99769514,0.00016438,2]
[351373408,1738547440829,-500.0,0.00016438,2]
[351373409,1738547440840,-500.0,0.00016438,2]
[351373410,1738547440850,-500.0,0.00016438,2]
[351373411,1738547440859,-500.0,0.00016438,2]
[351373412,1738547440869,-503.55503908,0.00016438,2]
[351373413,1738547440878,-408.49772177,0.00016438,2]
[351373414,1738547440888,-500.0,0.00016438,2]
[351373415,1738547440898,-500.0,0.00016438,2]
[351373416,1738547440908,-503.57245016,0.00016438,2]
[351373417,1738547440917,-500.0,0.00016438,2]
[351373418,1738547440927,-500.0,0.00016438,2]
[351373419,1738547440936,-502.58133081,0.00016438,2]
[351373420,1738547440945,-500.0,0.00016438,2]
[351373421,1738547440954,-500.0,0.00016438,2]
[351373422,1738547440963,-1648.06,0.00016438,2]
[351373423,1738547440973,-500.0,0.00016438,2]
[351373424,1738547440983,-210.4897483,0.00016438,2]
[351373425,1738547440992,-500.0,0.00016438,2]
[351373426,1738547441001,-291.50153671,0.00016438,2]
[351373427,1738547441010,-503.68484362,0.00016438,2]
[351373428,1738547441019,-500.0,0.00016438,2]
[351373429,1738547441029,-500.0,0.00016438,2]
[351373430,1738547441038,-315.23120634,0.00016438,2]
[351373431,1738547441054,-188.01083267,0.00016438,2]
[351373432,1738547441063,-500.0,0.00016438,2]
[351373433,1738547441072,-2683.97,0.00016438,2]
[351373434,1738547441081,-500.0,0.00016438,2]
[351373435,1738547441090,-506.81483498,0.00016438,2]
[351373436,1738547441100,-500.0,0.00016438,2]
[351373437,1738547441110,-500.0,0.00016438,2]
[351373438,1738547441119,-500.0,0.00016438,2]
[351373439,1738547441128,-500.0,0.00016438,2]
[351373440,1738547441137,-500.0,0.00016438,2]
[351373441,1738547441147,-2118.69,0.00016438,2]
[351373442,1738547441156,-600.99085291,0.00016438,2]
[351373443,1738547441165,-6901.59,0.00016438,2]
[351373444,1738547441174,-501.89713093,0.00016438,2]
[351373445,1738547441183,-4422.13606095,0.00016438,2]
[351373446,1738547441196,-2189.58393905,0.00016438,2]
[351373447,1738547441205,-500.52634029,0.00016438,2]
[351373448,1738547441220,-502.37059088,0.00016438,2]
[351373449,1738547441230,-530.00987833,0.00016438,2]
[351373450,1738547441241,-5690.07012167,0.00016438,2]
[351373451,1738547441250,-6220.08,0.00016438,2]
[351373452,1738547441263,-6220.08,0.00016438,2]
[351373453,1738547441273,-6220.08,0.00016438,2]
[351373454,1738547441282,-6220.08,0.00016438,2]
[351373455,1738547441293,-6220.08,0.00016438,2]
[351373456,1738547441309,-6220.08,0.00016438,2]
[351373457,1738547441320,-500.0,0.00016438,2]
[351373458,1738547441331,-6220.08,0.00016438,2]
[351373459,1738547441343,-6220.08,0.00016438,2]
[351373460,1738547441354,-6220.08,0.00016438,2]
[351373461,1738547441364,-6220.08,0.00016438,2]
[351373462,1738547441375,-6220.08,0.00016438,2]
[351373463,1738547441386,-500.0,0.00016438,2]
[351373464,1738547441396,-500.0,0.00016438,2]
[351373465,1738547441407,-502.69342687,0.00016438,2]
[351373466,1738547441417,-500.0,0.00016438,2]
[351373467,1738547441428,-502.79019313,0.00016438,2]
[351373468,1738547441439,-503.6212669,0.00016438,2]
[351373469,1738547441449,-895.24,0.00016438,2]
[351373470,1738547441459,-500.0,0.00016438,2]
[351373471,1738547441469,-502.62863395,0.00016438,2]
[351373472,1738547441479,-500.0,0.00016438,2]
[351373473,1738547441488,-502.40538071,0.00016438,2]
[351373474,1738547441499,-501.65188922,0.00016438,2]
[351373475,1738547441614,-258.07085777,0.00016438,2]
[351373476,1738547441626,-608.45,0.00016438,2]
[351373477,1738547441636,-500.0,0.00016438,2]
[351373478,1738547441646,-500.0,0.00016438,2]
[351373479,1738547441656,-500.0,0.00016438,2]
[351373480,1738547441667,-501.46941526,0.00016438,2]
[351373481,1738547441677,-503.53918176,0.00016438,2]
[351373482,1738547441688,-500.0,0.00016438,2]
[351373484,1738547441699,-500.0,0.00016438,2]
[351373485,1738547441709,-409.61233935,0.00016438,2]
[351373486,1738547441719,-501.26028502,0.00016438,2]
[351373487,1738547441729,-500.0,0.00016438,2]
[351373488,1738547441739,-1567.85,0.00016438,2]
[351373489,1738547441749,-500.0,0.00016438,2]
[351373490,1738547441759,-505.07476273,0.00016438,2]
[351373491,1738547441769,-504.86865349,0.00016438,2]
[351373492,1738547441778,-688.74,0.00016438,2]
[351373493,1738547441788,-500.0,0.00016438,2]
[351373494,1738547441804,-688.74,0.00016438,2]
[351373495,1738547441814,-688.74,0.00016438,2]
[351373496,1738547441824,-507.83145409,0.00016438,2]
[351373497,1738547441835,-688.74,0.00016438,2]
[351373498,1738547441844,-501.95611422,0.00016438,2]
[351373499,1738547441855,-688.74,0.00016438,2]
[351373500,1738547441865,-688.74,0.00016438,2]
[351373501,1738547441875,-688.74,0.00016438,2]
[351373502,1738547441886,-688.74,0.00016438,2]
[351373503,1738547441895,-688.74,0.00016438,2]
[351373504,1738547441905,-688.74,0.00016438,2]
[351373505,1738547441915,-688.74,0.00016438,2]
[351373506,1738547441925,-500.0,0.00016438,2]
[351373507,1738547441935,-500.0,0.00016438,2]
[351373508,1738547441946,-505.47535606,0.00016438,2]
[351373509,1738547441955,-500.0,0.00016438,2]
[351373510,1738547441965,-503.58811572,0.00016438,2]
[351373511,1738547441975,-500.0,0.00016438,2]
[351373512,1738547441985,-504.39691902,0.00016438,2]
[351373513,1738547441995,-500.0,0.00016438,2]
[351373514,1738547442006,-804.26,0.00016438,2]
[351373515,1738547442016,-525.5399608,0.00016438,2]
[351373516,1738547442026,-500.85766248,0.00016438,2]
[351373517,1738547442037,-500.0,0.00016438,2]
[351373518,1738547442052,-500.0,0.00016438,2]
[351373519,1738547442062,-504.62988642,0.00016438,2]
[351373520,1738547442073,-500.0,0.00016438,2]
[351373521,1738547442083,-500.0,0.00016438,2]
[351373522,1738547442093,-500.0,0.00016438,2]
[351373523,1738547442104,-500.0,0.00016438,2]
[351373524,1738547442113,-500.51518422,0.00016438,2]
[351373525,1738547442124,-503.91397195,0.00016438,2]
[351373526,1738547442133,-500.0,0.00016438,2]
[351373527,1738547442144,-501.09626049,0.00016438,2]
[351373529,1738547442154,-503.20880461,0.00016438,2]
[351373531,1738547442164,-502.09028587,0.00016438,2]
[351373532,1738547442175,-500.0,0.00016438,2]
[351373534,1738547442184,-644.9,0.00016438,2]
[351373536,1738547442194,-500.0,0.00016438,2]
[351373538,1738547442205,-500.0,0.00016438,2]
[351373541,1738547442221,-500.0,0.00016438,2]
[351373544,1738547442231,-503.86871763,0.00016438,2]
[351373546,1738547442240,-500.0,0.00016438,2]
[351373550,1738547442250,-500.0,0.00016438,2]
[351373552,1738547442259,-500.0,0.00016438,2]
[351373558,1738547442269,-501.9158244,0.00016438,2]
[351373561,1738547442280,-500.0,0.00016438,2]
[351373566,1738547442289,-635.59611508,0.00016438,2]
[351373569,1738547442303,-502.95110201,0.00016438,2]
[351373571,1738547442312,-500.0,0.00016438,2]
[351373573,1738547442323,-500.0,0.00016438,2]
[351373575,1738547442333,-500.0,0.00016438,2]
[351373578,1738547442343,-6458.91,0.00016438,2]
[351373582,1738547442353,-500.0,0.00016438,2]
[351373586,1738547442363,-500.0,0.00016438,2]
[351373590,1738547442373,-502.87330437,0.00016438,2]
[351373596,1738547442384,-746.7,0.00016438,2]
[351373600,1738547442394,-500.0,0.00016438,2]
[351373606,1738547442405,-500.0,0.00016438,2]
[351373611,1738547442415,-500.0,0.00016438,2]
[351373616,1738547442426,-500.0,0.00016438,2]
[351373619,1738547442437,-502.48607561,0.00016438,2]
[351373622,1738547442448,-1732.28,0.00016438,2]
[351373625,1738547442459,-573.31736923,0.00016438,2]
[351373628,1738547442469,-520.06139056,0.00016438,2]
[351373631,1738547442480,-500.0,0.00016438,2]
[351373634,1738547442491,-500.0,0.00016438,2]
[351373637,1738547442501,-931.28,0.00016438,2]
[351373640,1738547442512,-500.0,0.00016438,2]
[351373644,1738547442523,-501.88346647,0.00016438,2]
[351373648,1738547442534,-500.0,0.00016438,2]
[351373651,1738547442545,-500.0,0.00016438,2]
[351373654,1738547442559,-500.0,0.00016438,2]
[351373656,1738547442570,-500.0,0.00016438,2]
[351373657,1738547442581,-510.58705993,0.00016438,2]
[351373658,1738547442591,-500.0,0.00016438,2]
[351373659,1738547442601,-500.0,0.00016438,2]
[351373660,1738547442612,-500.0,0.00016438,2]
[351373661,1738547442623,-500.0,0.00016438,2]
[351373662,1738547442636,-500.0,0.00016438,2]
[351373663,1738547442648,-691.39,0.00016438,2]
[351373664,1738547442658,-500.45858257,0.00016438,2]
[351373665,1738547442669,-1667.79,0.00016438,2]
[351373666,1738547442678,-500.0,0.00016438,2]
[351373667,1738547442688,-793.98,0.00016438,2]
[351373668,1738547442698,-501.82340015,0.00016438,2]
[351373669,1738547442709,-500.0,0.00016438,2]
[351373670,1738547442719,-500.0,0.00016438,2]
[351373671,1738547442729,-193.5913672,0.00016438,2]
[351373672,1738547442740,-500.0,0.00016438,2]
[351373673,1738547442750,-588.33643168,0.00016438,2]
[351373674,1738547442760,-500.0,0.00016438,2]
[351373675,1738547442770,-501.27913001,0.00016438,2]
[351373676,1738547442780,-500.0,0.00016438,2]
[351373677,1738547442790,-500.0,0.00016438,2]
[351373678,1738547442803,-464.8714432,0.00016438,2]
[351373679,1738547442813,-1000.0,0.00016438,2]
[351373680,1738547442822,-502.68030952,0.00016438,2]
[351373681,1738547442832,-3854.64,0.00016438,2]
[351373682,1738547442842,-500.0,0.00016438,2]
[351373683,1738547442852,-500.0,0.00016438,2]
[351373684,1738547442862,-500.0,0.00016438,2]
[351373685,1738547442873,-500.97774269,0.00016438,2]
[351373686,1738547442883,-1000.0,0.00016438,7]
[351373688,1738547442893,-501.23775858,0.00016438,2]
[351373689,1738547442903,-500.0,0.00016438,2]
[351373690,1738547442913,-500.0,0.00016438,2]
[351373691,1738547442923,-504.32396092,0.00016438,2]
[351373692,1738547442933,-504.36135405,0.00016438,2]
[351373693,1738547442943,-501.1018882,0.00016438,2]
[351373694,1738547442952,-500.0,0.00016438,2]
[351373695,1738547442961,-500.0,0.00016438,2]
[351373697,1738547442970,-500.0,0.00016438,2]
[351373698,1738547442979,-705.89,0.00016438,2]
[351373699,1738547442989,-500.0,0.00016438,2]
[351373700,1738547442999,-500.0,0.00016438,2]
[351373701,1738547443008,-305.18642302,0.00016438,2]
[351373702,1738547443018,-500.0,0.00016438,2]
[351373703,1738547443028,-363.82813409,0.00016438,2]
[351373704,1738547443038,-500.0,0.00016438,2]
[351373705,1738547443049,-500.0,0.00016438,2]
[351373706,1738547443059,-501.6540517,0.00016438,2]
[351373707,1738547443069,-500.0,0.00016438,2]
[351373708,1738547443079,-697.8,0.00016438,2]
[351373709,1738547443089,-502.59903853,0.00016438,2]
[351373710,1738547443100,-500.68009654,0.00016438,2]
[351373711,1738547443109,-2564.36,0.00016438,2]
[351373712,1738547443120,-500.0,0.00016438,2]
[351373713,1738547443130,-500.0,0.00016438,2]
[351373714,1738547443140,-500.0,0.00016438,2]
[351373715,1738547443151,-201.17101953,0.00016438,2]
[351373716,1738547443161,-500.0,0.00016438,2]
[351373717,1738547443171,-501.34263737,0.00016438,2]
[351373719,1738547443181,-500.0,0.00016438,2]
[351373720,1738547443190,-500.0,0.00016438,2]
[351373721,1738547443200,-500.0,0.00016438,2]
[351373723,1738547443211,-500.0,0.00016438,2]
[351373724,1738547443222,-152.0,0.00016442,2]
[351373726,1738547443232,-500.0,0.00016473,2]
[351373727,1738547443242,-166.29414146,0.00016474,2]
[351373728,1738547443251,-6220.08,0.00016499,2]